fUSD/lending_fUSD_20250608
["ID","MTS","AMOUNT","RATE_DAILY","PERIOD"]
[365021927,1749407438510,-580.28,0.00017888,2]
[365021929,1749407438519,-480.0,0.00017888,2]
[365021931,1749407438528,-645.54,0.00017888,2]
[365021933,1749407438537,-480.0,0.00017888,2]
[365021934,1749407438546,-480.0,0.00017888,2]
[365021936,1749407438555,-480.0,0.00017888,2]
[365021938,1749407438565,-666.39,0.00017888,2]
[365021940,1749407438574,-1189.21,0.00017888,2]
[365021942,1749407438584,-2851.21,0.00017888,2]
[365021944,1749407438593,-1000.0,0.00017889,2]
[365021946,1749407438602,-36058.946,0.00017889,2]
[365021948,1749407438612,-403.13108284,0.00017893,2]
[365021950,1749407438621,-172.10313023,0.00017897,2]
[365021952,1749407438630,-151.0,0.00017898,2]
[365021954,1749407438639,-151.0,0.00017898,2]
[365021955,1749407438648,-159.081604,0.00017898,2]
[365021957,1749407438657,-151.0,0.00017898,2]
[365021959,1749407438667,-299.624497,0.00017898,2]
[365021961,1749407438676,-151.0,0.00017898,2]
[365021963,1749407438685,-151.0,0.00017898,2]
[365021965,1749407438695,-151.0,0.00017898,2]
[365021967,1749407438705,-151.0,0.00017898,2]
[365021969,1749407438714,-151.0,0.00017898,2]
[365021971,1749407438723,-151.0,0.00017898,2]
[365021973,1749407438732,-151.0,0.00017898,2]
[365021975,1749407438741,-492.624245,0.00017898,2]
[365021976,1749407438750,-492.624245,0.00017898,2]
[365021978,1749407438760,-232.270536,0.00017898,2]
[365021980,1749407438769,-252.716693,0.00017898,2]
[365021982,1749407438778,-232.270536,0.00017898,2]
[365021984,1749407438787,-151.0,0.00017898,2]
[365021986,1749407438795,-151.0,0.00017898,2]
[365021988,1749407438806,-151.0,0.00017898,2]
[365021990,1749407438815,-151.0,0.00017898,2]
[365021992,1749407438824,-162.150358,0.00017898,2]
[365021994,1749407438833,-151.0,0.00017898,2]
[365021996,1749407438842,-162.150358,0.00017898,2]
[365021997,1749407438852,-151.0,0.00017898,2]
[365021999,1749407438861,-151.0,0.00017898,2]
[365022001,1749407438870,-46154.76160274,0.00017898,2]
[365022027,1749407439116,-1091.31940927,0.00017898,2]
[365022029,1749407439127,-298.34808751,0.00017898,2]
[365022104,1749407439840,-476.3575989,0.00017898,2]
[365022106,1749407439851,-16339.20419523,0.00017898,2]
[365022108,1749407439862,-54248.5993013,0.00017898,2]
[365022146,1749407440230,-2770.34690872,0.00017898,2]
[365022372,1749407442798,-1984.10068041,0.00017898,2]
[365022373,1749407442865,-829.51,0.00017888,2]
[365022374,1749407442875,-2928.82050578,0.00017898,2]
[365022376,1749407443039,-1270.00363413,0.00017898,2]
[365022394,1749407454791,321.21,0.00016981,2]
[365022395,1749407680033,150.0,0.00016921,7]
[365022396,1749407797237,685.56,0.00014981,2]
[365022397,1749407812841,1006.59,0.00016891,2]
[365022399,1749407826578,216.52,0.00013699,2]
[365022400,1749407848817,169.77,0.00016894,2]
[365022401,1749407937105,1320.47,0.00016869,2]
[365022402,1749408011754,201.0,0.00016807,2]
[365022403,1749408070946,1632.33231657,0.00016872,2]
[365022404,1749408070968,145.87768343,0.00016872,2]
[365022405,1749408257378,200.0,0.00016858,2]
[365022406,1749408263903,1000.0,0.00016858,2]
[365022407,1749408439308,150.0,0.00016858,2]
[365022408,1749408523673,250.0,0.00016854,2]
[365022412,1749408631874,-685.56,0.00017244,2]
[365022413,1749408631884,-166.34,0.0001742,2]
[365022414,1749408631893,-280.51,0.00017468,2]
[365022415,1749408631902,-1033.89819884,0.00017489,2]
[365022416,1749408631915,-923.95780116,0.00017489,2]
[365022417,1749408631925,-207.4,0.00017489,2]
[365022418,1749408631935,-306.0553491,0.00017498,2]
[365022419,1749408631944,-1556.0908,0.000175,2]
[365022420,1749408631953,-609.79363566,0.00017543,2]
[365022421,1749408631964,-590.20636434,0.00017543,2]
[365022422,1749408631974,-28.55912887,0.00017544,2]
[365022423,1749408631986,-1424.60352,0.00017544,2]
[365022424,1749408632000,-577.13402313,0.00017544,2]
[365022425,1749408632010,-2105.41764886,0.00017599,2]
[365022426,1749408632019,-1000.0,0.000176,2]
[365022427,1749408632029,-2183.31810187,0.00017654,2]
[365022428,1749408632038,-2264.10087164,0.00017709,2]
[365022429,1749408632049,-531.5,0.0001772,2]
[365022430,1749408632059,-164.030792,0.0001772,2]
[365022431,1749408632069,-150.0,0.00017726,2]
[365022432,1749408632079,-150.0,0.0001774,2]
[365022433,1749408632088,-171.49,0.00017751,2]
[365022434,1749408632097,-150.0,0.00017763,2]
[365022436,1749408632107,-2347.87260389,0.00017764,2]
[365022438,1749408632116,-150.0,0.00017771,2]
[365022440,1749408632125,-1000.0,0.00017788,2]
[365022442,1749408632135,-383.68995715,0.00017798,2]
[365022444,1749408632146,-482.72314285,0.00017798,2]
[365022446,1749408632155,-500.0,0.00017798,2]
[365022447,1749408632165,-150.0,0.00017799,2]
[365022448,1749408632174,-1000.0,0.000178,6]
[365022449,1749408632183,-550.0,0.00017802,2]
[365022450,1749408632193,-1625.80632024,0.00017802,2]
[365022451,1749408632202,-1000.0,0.00017805,2]
[365022452,1749408632212,-2434.74389024,0.00017819,2]
[365022453,1749408632221,-151.0,0.00017832,2]
[365022454,1749408632230,-1000.0,0.00017832,2]
[365022455,1749408632239,-500.0,0.00017832,2]
[365022456,1749408632249,-500.0,0.00017832,2]
[365022457,1749408632258,-151.0,0.00017832,2]
[365022458,1749408632267,-500.0,0.00017832,2]
[365022459,1749408632276,-500.0,0.00017832,2]
[365022460,1749408632286,-500.0,0.00017832,2]
[365022461,1749408632295,-500.0,0.00017832,2]
[365022462,1749408632304,-500.0,0.00017832,2]
[365022463,1749408632313,-151.0,0.00017832,2]
[365022464,1749408632322,-500.0,0.00017832,2]
[365022465,1749408632332,-500.0,0.00017832,2]
[365022466,1749408632345,-500.0,0.00017832,2]
[365022467,1749408632355,-500.0,0.00017832,2]
[365022469,1749408632364,-500.0,0.00017832,2]
[365022471,1749408632373,-500.0,0.00017832,2]
[365022475,1749408632383,-500.0,0.00017832,2]
[365022479,1749408632393,-500.0,0.00017832,2]
[365022483,1749408632402,-498.06901598,0.00017832,2]
[365022487,1749408632415,-1.93098402,0.00017832,2]
[365022491,1749408632424,-500.0,0.00017832,2]
[365022494,1749408632433,-500.0,0.00017832,2]
[365022497,1749408632443,-313.86901598,0.00017832,2]
[365022963,1749408637901,-186.13098402,0.00017832,2]
[365022964,1749408637911,-500.0,0.00017832,2]
[365022965,1749408637921,-151.0,0.00017832,2]
[365022966,1749408637932,-500.0,0.00017832,2]
[365022967,1749408637942,-500.0,0.00017832,2]
[365022968,1749408637951,-151.0,0.00017832,2]
[365022969,1749408637961,-500.0,0.00017832,2]
[365022970,1749408637970,-668.65185757,0.00017832,2]
[365022971,1749408637980,-500.0,0.00017832,2]
[365022972,1749408637990,-151.0,0.00017832,2]
[365022973,1749408637999,-500.0,0.00017832,2]
[365022974,1749408638009,-500.0,0.00017832,2]
[365022975,1749408638019,-151.0,0.00017832,2]
[365022976,1749408638028,-500.0,0.00017832,2]
[365022977,1749408638038,-500.0,0.00017832,2]
[365022978,1749408638047,-151.0,0.00017832,2]
[365022979,1749408638056,-2000.0,0.00017851,2]
[365022980,1749408638066,-500.0,0.00017851,2]
[365022981,1749408638075,-150.0,0.00017859,2]
[365022982,1749408638084,-150.0,0.0001786,2]
[365022983,1749408638094,-2524.82941417,0.00017874,2]
[365022984,1749408638103,-150.0,0.00017876,2]
[365022985,1749408638113,-150.0,0.0001788,2]
[365022986,1749408638122,-480.0,0.00017887,2]
[365022987,1749408638132,-284.0,0.00017887,2]
[365022988,1749408638141,-164.58,0.00017887,2]
[365022989,1749408638150,-480.0,0.00017887,2]
[365022990,1749408638159,-480.37,0.00017887,2]
[365022991,1749408638169,-480.0,0.00017887,2]
[365022992,1749408638178,-403.4,0.00017887,2]
[365022993,1749408638187,-480.0,0.00017887,2]
[365022994,1749408638196,-480.0,0.00017887,2]
[365022995,1749408638205,-480.0,0.00017887,2]
[365022996,1749408638214,-480.0,0.00017887,2]
[365022997,1749408638223,-480.0,0.00017887,2]
[365022998,1749408638232,-505.70452213,0.00017887,2]
[365022999,1749408638241,-360.0,0.00017887,2]
[365023000,1749408638250,-501.26,0.00017887,2]
[365023001,1749408638259,-480.0,0.00017887,2]
[365023002,1749408638268,-384.05520477,0.00017887,2]
[365023003,1749408638277,-358.38,0.00017887,2]
[365023004,1749408638286,-2500.0,0.00017889,2]
[365023005,1749408638295,-200.845,0.0001789,2]
[365023006,1749408638306,-12941.52787561,0.00017892,2]
[365023007,1749408638316,-22953.5874901,0.00017894,2]
[365023009,1749408640380,-907.37457163,0.00017894,2]
[365023010,1749408640392,-580.0627494,0.00017894,2]
[365023011,1749408645925,-1249.31046,0.00017894,2]
[365023013,1749408684603,200.0,0.00016983,2]
[365023017,1749408731857,202.0,0.00016967,2]
[365023018,1749408756695,3149.17,0.00016967,2]
[365023019,1749408785886,1105.89,0.00016957,2]
[365023021,1749408811832,213.57,0.00013699,2]
[365023022,1749408821351,205.0,0.00016967,2]
[365023023,1749408873823,503.29,0.00016951,2]
[365023024,1749408911036,150.0,0.00016942,7]
[365023025,1749408912588,617.0,0.00015024,2]
[365023026,1749408913364,1908.20231657,0.00016942,2]
[365023027,1749408913405,3563.36768343,0.00016942,2]
[365023028,1749409028888,200.0,0.00016943,2]
[365023029,1749409072434,151.0,0.00016865,2]
[365023030,1749409089389,151.0,0.00016845,2]
[365023031,1749409119755,169.47,0.00016934,2]
[365023033,1749409172937,5765.16231657,0.00016934,2]
[365023034,1749409172961,10000.0,0.00016934,2]
[365023035,1749409172983,8134.83768343,0.00016934,2]
[365023036,1749409183834,500.0,0.00016153,2]
[365023037,1749409343814,-617.0,0.00017288,2]
[365023038,1749409343837,-600.0,0.0001734,4]
[365023039,1749409343858,-533.27913237,0.00017393,2]
[365023040,1749409343878,-250.0,0.00017414,2]
[365023041,1749409343898,-600.0,0.00017414,4]
[365023042,1749409343917,-164.030792,0.0001754,2]
[365023043,1749409343936,-1000.0,0.00017635,2]
[365023044,1749409343955,-3723.55713216,0.000177,2]
[365023045,1749409343975,-150.0,0.00017725,2]
[365023046,1749409343993,-744.7,0.00017732,2]
[365023047,1749409344012,-1200.0,0.00017782,2]
[365023048,1749409344030,-984.5,0.00017783,2]
[365023049,1749409344048,-1957.856,0.00017783,2]
[365023050,1749409344068,-300.0,0.00017793,2]
[365023051,1749409344086,-2175.07694347,0.000178,2]
[365023052,1749409391762,1365.16231657,0.00016948,2]
[365023053,1749409391783,487.25768343,0.00016948,2]
[365023054,1749409446970,1000.0,0.00016934,2]
[365023055,1749409480569,-202.0,0.00017232,2]
[365023056,1749409480592,-207.4,0.00017783,2]
[365023057,1749409480614,-250.0,0.00017785,2]
[365023058,1749409480637,-150.0,0.00017786,2]
[365023059,1749409480659,-4578.00625653,0.000178,2]
[365023060,1749409480683,-227.7189,0.000178,2]
[365023061,1749409480709,-2000.0,0.00017805,2]
[365023062,1749409480730,-500.0,0.00017805,2]
[365023063,1749409480755,-1884.87484347,0.00017838,2]
[365023064,1749409526011,168.0,0.0001703,2]
[365023065,1749409548945,168.0,0.00016992,2]
[365023066,1749409567908,228.94,0.00016871,2]
[365023067,1749409677556,250.0,0.00016838,2]
[365023074,1749409832187,-168.0,0.00017057,2]
[365023075,1749409832196,-168.0,0.00017062,2]
[365023076,1749409832206,-168.0,0.00017195,2]
[365023077,1749409832215,-168.0,0.00017211,2]
[365023078,1749409832225,-200.0,0.00017232,2]
[365023079,1749409832234,-168.0,0.00017271,2]
[365023080,1749409832243,-40.0,0.00017399,2]
[365023081,1749409832256,-128.0,0.00017399,2]
[365023083,1749409832265,-168.0,0.00017576,2]
[365023084,1749409832274,-150.0,0.00017633,2]
[365023085,1749409832285,-168.0,0.00017641,2]
[365023086,1749409832294,-168.0,0.0001765,2]
[365023087,1749409832304,-168.0,0.0001768,2]
[365023088,1749409832313,-454.71,0.000177,2]
[365023089,1749409832322,-744.7,0.000177,2]
[365023090,1749409832331,-168.0,0.00017707,2]
[365023091,1749409832341,-168.0,0.00017715,2]
[365023092,1749409832350,-168.0,0.00017733,2]
[365023093,1749409832360,-168.0,0.0001775,2]
[365023094,1749409832369,-168.0,0.00017756,2]
[365023095,1749409832378,-168.0,0.00017767,2]
[365023096,1749409832387,-900.0,0.000178,6]
[365023097,1749409832398,-500.0,0.00017808,2]
[365023098,1749409832407,-647.74643778,0.00017825,2]
[365023099,1749409832417,-480.0,0.00017843,2]
[365023100,1749409832426,-3954.7628,0.00017844,2]
[365023101,1749409832435,-2082.3582,0.00017844,2]
[365023102,1749409832444,-220.0,0.00017856,2]
[365023103,1749409832455,-1957.856,0.00017873,2]
[365023104,1749409832467,-207.4,0.00017873,2]
[365023105,1749409832476,-151.0,0.00017878,2]
[365023106,1749409832485,-1000.0,0.00017878,2]
[365023107,1749409832494,-151.0,0.00017878,2]
[365023108,1749409832503,-500.0,0.00017878,2]
[365023109,1749409832512,-500.0,0.00017878,2]
[365023110,1749409832521,-500.0,0.00017878,2]
[365023111,1749409832530,-500.0,0.00017878,2]
[365023112,1749409832539,-151.0,0.00017878,2]
[365023113,1749409832548,-500.0,0.00017878,2]
[365023114,1749409832557,-500.0,0.00017878,2]
[365023115,1749409832566,-500.0,0.00017878,2]
[365023116,1749409832575,-500.0,0.00017878,2]
[365023117,1749409832584,-500.0,0.00017878,2]
[365023118,1749409832593,-500.0,0.00017878,2]
[365023119,1749409832602,-500.0,0.00017878,2]
[365023120,1749409832611,-500.0,0.00017878,2]
[365023121,1749409832619,-500.0,0.00017878,2]
[365023122,1749409832628,-500.0,0.00017878,2]
[365023123,1749409832638,-500.0,0.00017878,2]
[365023124,1749409832647,-500.0,0.00017878,2]
[365023125,1749409832656,-151.0,0.00017878,2]
[365023126,1749409832665,-500.0,0.00017878,2]
[365023127,1749409832674,-500.0,0.00017878,2]
[365023128,1749409832683,-500.0,0.00017878,2]
[365023129,1749409832692,-500.0,0.00017878,2]
[365023130,1749409832701,-500.0,0.00017878,2]
[365023131,1749409832709,-500.0,0.00017878,2]
[365023132,1749409832719,-500.0,0.00017878,2]
[365023133,1749409832728,-500.0,0.00017878,2]
[365023134,1749409832738,-500.0,0.00017878,2]
[365023135,1749409832747,-500.0,0.00017878,2]
[365023136,1749409832756,-500.0,0.00017878,2]
[365023137,1749409832769,-500.0,0.00017878,2]
[365023138,1749409832779,-500.0,0.00017878,2]
[365023139,1749409832788,-500.0,0.00017878,2]
[365023140,1749409832797,-500.0,0.00017878,2]
[365023141,1749409832806,-500.0,0.00017878,2]
[365023142,1749409832817,-500.0,0.00017878,2]
[365023143,1749409832826,-500.0,0.00017878,2]
[365023145,1749409832836,-500.0,0.00017878,2]
[365023147,1749409832847,-500.0,0.00017878,2]
[365023149,1749409832856,-500.0,0.00017878,2]
[365023151,1749409832866,-500.0,0.00017878,2]
[365023153,1749409832875,-151.0,0.00017878,2]
[365023155,1749409832883,-500.0,0.00017878,2]
[365023157,1749409832892,-500.0,0.00017878,2]
[365023159,1749409832901,-500.0,0.00017878,2]
[365023161,1749409832910,-500.0,0.00017878,2]
[365023163,1749409832919,-500.0,0.00017878,2]
[365023165,1749409832929,-500.0,0.00017878,2]
[365023167,1749409832938,-500.0,0.00017878,2]
[365023169,1749409832947,-500.0,0.00017878,2]
[365023171,1749409832957,-500.0,0.00017878,2]
[365023173,1749409832966,-500.0,0.00017878,2]
[365023174,1749409832975,-643.19126773,0.00017878,2]
[365023176,1749409832984,-500.0,0.00017878,2]
[365023178,1749409832993,-500.0,0.00017878,2]
[365023180,1749409833003,-500.0,0.00017878,2]
[365023182,1749409833012,-500.0,0.00017878,2]
[365023184,1749409833021,-500.0,0.00017878,2]
[365023186,1749409833030,-151.0,0.00017878,2]
[365023188,1749409833039,-151.0,0.00017878,2]
[365023190,1749409833049,-151.0,0.00017878,2]
[365023192,1749409833058,-257.46242383,0.00017878,2]
[365023194,1749409833067,-668.65185757,0.00017878,2]
[365023196,1749409833077,-500.0,0.00017883,2]
[365023198,1749409833086,-500.0,0.00017883,2]
[365023199,1749409833096,-500.0,0.00017883,2]
[365023201,1749409833105,-150.0,0.00017883,2]
[365023203,1749409833114,-500.0,0.00017883,2]
[365023205,1749409833123,-150.0,0.00017883,2]
[365023207,1749409833132,-500.0,0.00017883,2]
[365023209,1749409833141,-150.2311666,0.00017883,2]
[365023211,1749409833151,-550.0,0.00017883,2]
[365023213,1749409833160,-500.0,0.00017883,2]
[365023215,1749409833168,-150.0,0.00017883,2]
[365023217,1749409833178,-510.9135533,0.00017883,2]
[365023642,1749409837855,7396.87,0.00016942,2]
[365023663,1749409838038,-545.36474637,0.00017791,2]
[365023669,1749409838092,-9049.38784273,0.00017791,2]
[365023676,1749409838147,-7891.22386085,0.00017791,2]
[365023678,1749409838157,-160.0864467,0.00017883,2]
[365023680,1749409838166,-160.676,0.00017886,2]
[365023682,1749409838175,-1000.0,0.00017887,2]
[365023684,1749409838184,-3824.41533314,0.00017887,2]
[365023686,1749409838195,-1640.55,0.00017887,2]
[365023716,1749409838470,-7604.33169983,0.00017887,2]
[365023718,1749409838485,-38996.98826183,0.00017887,2]
[365023878,1749409840234,-260.9821,0.00017887,2]
[365024673,1749409849531,151.0,0.00016668,2]
[365024835,1749409909190,149.93231657,0.00016946,2]
[365024836,1749409909211,101.70768343,0.00016946,2]
[365024838,1749410027642,608.85,0.00015013,2]
[365024840,1749410082890,150.0,0.00017053,2]
[365024841,1749410102672,150.0,0.00016917,7]
[365024845,1749410172041,200.0,0.00016232,2]
[365024847,1749410189972,219.37,0.00013699,2]
[365024852,1749410404509,1000.0,0.00016907,2]
[365024860,1749410711211,250.0,0.00016891,2]
[365024863,1749410891632,201.0,0.00016536,2]
[365024875,1749410983087,251.64,0.0001689,2]
[365024887,1749411032350,-1000.00000099,0.00017277,2]
[365024888,1749411032360,-608.85,0.00017277,2]
[365024889,1749411032369,-164.28,0.00017454,2]
[365024890,1749411032379,-448.0,0.00017699,2]
[365024891,1749411032388,-1957.856,0.00017778,2]
[365024892,1749411032398,-207.4,0.00017778,2]
[365024893,1749411032407,-1069.7852,0.0001779,2]
[365024894,1749411032417,-4592.86037502,0.0001779,2]
[365024901,1749411038118,-437.253,0.0001779,2]
[365024902,1749411038175,-10707.26542989,0.0001779,2]
[365024903,1749411038185,-167.08143113,0.0001779,2]
[365024904,1749411038194,-582.97179402,0.0001779,2]
[365024905,1749411038204,-900.0,0.000178,6]
[365024906,1749411038213,-500.0,0.00017805,2]
[365024907,1749411038223,-4620.48189979,0.00017816,2]
[365024908,1749411038233,-2030.296672,0.00017833,2]
[365024909,1749411038243,-582.97179396,0.00017861,2]
[365024910,1749411038253,-5000.0,0.00017864,2]
[365024911,1749411038262,-500.0,0.00017873,2]
[365024912,1749411038271,-500.0,0.00017873,2]
[365024913,1749411038280,-500.0,0.00017873,2]
[365024914,1749411038290,-151.0,0.0001788,2]
[365024915,1749411038299,-151.0,0.0001788,2]
[365024916,1749411038308,-200.0,0.0001788,2]
[365024917,1749411038318,-500.0,0.0001788,2]
[365024918,1749411038327,-500.0,0.0001788,2]
[365024919,1749411038337,-500.0,0.0001788,2]
[365024920,1749411038346,-500.0,0.0001788,2]
[365024921,1749411038356,-151.0,0.0001788,2]
[365024922,1749411038365,-500.0,0.0001788,2]
[365024923,1749411038374,-500.0,0.0001788,2]
[365024924,1749411038384,-500.0,0.0001788,2]
[365024925,1749411038396,-518.5,0.0001788,2]
[365024926,1749411038407,-500.0,0.0001788,2]
[365024927,1749411038417,-537.6845,0.0001788,2]
[365024928,1749411038427,-500.0,0.0001788,2]
[365024929,1749411038438,-443.8155,0.0001788,2]
[365024930,1749411038448,-500.0,0.0001788,2]
[365024932,1749411038457,-500.0,0.0001788,2]
[365024934,1749411038467,-500.0,0.0001788,2]
[365024936,1749411038476,-500.0,0.0001788,2]
[365024938,1749411038485,-500.0,0.0001788,2]
[365024939,1749411038494,-500.0,0.0001788,2]
[365024941,1749411038504,-693.3919763,0.0001788,2]
[365024943,1749411038514,-500.0,0.0001788,2]
[365024945,1749411038523,-2012.53900291,0.0001788,2]
[365024948,1749411038539,-1907.88099709,0.0001788,2]
[365024950,1749411038548,-160.676,0.0001788,2]
[365024951,1749411038560,-257.80815152,0.00017887,2]
[365025114,1749411046287,-1390.233605,0.00017887,2]
[365025115,1749411046342,-894.61291224,0.00017887,2]
[365025117,1749411076132,-1000.0,0.0001779,2]
[365025118,1749411076153,-340.507204,0.00017797,2]
[365025119,1749411076174,-2659.492796,0.00017887,2]
[365025121,1749411108284,169.47,0.00016946,2]
[365025126,1749411327188,208.4,0.00013699,2]
[365025129,1749411419650,547.96,0.00014977,2]
[365025132,1749411501525,1000.0,0.00016897,2]
[365025134,1749411511208,150.0,0.00016899,7]
[365025136,1749411611821,201.0,0.0001695,2]
[365025145,1749412062992,4590.60231657,0.00017,7]
[365025146,1749412063015,3616.58506733,0.00017,7]
[365025153,1749412232289,-547.96,0.00017241,2]
[365025154,1749412232299,-136.99054635,0.00017305,2]
[365025155,1749412232311,-113.00945365,0.00017305,2]
[365025156,1749412232320,-300.0,0.00017728,2]
[365025158,1749412232329,-225.87625187,0.00017728,2]
[365025159,1749412232342,-502.97687752,0.00017728,2]
[365025160,1749412232399,-471.14687061,0.00017728,2]
[365025161,1749412232417,-466.37743524,0.00017729,2]
[365025162,1749412232429,-3860.97569415,0.00017729,2]
[365025163,1749412232440,-5146.07217067,0.00017729,2]
[365025164,1749412232454,-547.25853702,0.00017729,2]
[365025165,1749412232465,-580.54091556,0.00017729,2]
[365025166,1749412232476,-3094.96407791,0.00017729,2]
[365025167,1749412232551,-1080.15470785,0.00017729,2]
[365025168,1749412232559,-500.0,0.00017755,2]
[365025169,1749412232569,-600.0,0.00017772,4]
[365025170,1749412232578,-163.84529215,0.00017788,2]
[365025171,1749412232590,-1338.16083642,0.00017788,2]
[365025172,1749412232602,-997.99387143,0.00017788,2]
[365025173,1749412232612,-214.18372465,0.00017788,2]
[365025174,1749412232646,-3944.24998508,0.00017788,2]
[365025175,1749412232657,-300.0,0.00017789,2]
[365025176,1749412232666,-5000.0,0.00017789,2]
[365025177,1749412232675,-600.0,0.0001779,4]
[365025178,1749412232687,-23320.9473,0.0001779,2]
[365025179,1749412232697,-466.37743516,0.0001779,2]
[365025180,1749412232706,-800.0,0.000178,6]
[365025181,1749412232717,-2156.23,0.00017818,2]
[365025182,1749412232727,-207.4,0.00017818,2]
[365025183,1749412232736,-1957.856,0.00017818,2]
[365025184,1749412232745,-262.50958124,0.00017826,2]
[365025185,1749412232755,-173.41975063,0.00017826,2]
[365025186,1749412232764,-315.83533472,0.00017826,2]
[365025187,1749412232773,-1055.45106243,0.00017827,2]
[365025188,1749412232783,-8889.18345206,0.00017827,2]
[365025189,1749412232795,-1287.56006061,0.00017827,2]
[365025190,1749412232806,-744.535,0.00017827,2]
[365025191,1749412232828,-639.16242228,0.00017827,2]
[365025196,1749412232847,-540.53130152,0.00017827,2]
[365025198,1749412232858,-4187.37717545,0.00017827,2]
[365025199,1749412232869,-637.76897716,0.00017827,2]
[365025201,1749412232880,-566.95567836,0.00017827,2]
[365025203,1749412232892,-2559.60000002,0.00017827,2]
[365025696,1749412238245,-66113.26493448,0.00017827,2]
[365025706,1749412238301,-48847.98634453,0.00017827,2]
[365025709,1749412238310,-427.32901779,0.00017828,2]
[365025711,1749412238319,-481.27115681,0.00017828,2]
[365025713,1749412238328,-460.0,0.00017828,2]
[365025715,1749412238337,-485.35884164,0.00017828,2]
[365025718,1749412238347,-480.0,0.00017828,2]
[365025721,1749412238358,-480.18,0.00017828,2]
[365025724,1749412238367,-460.0,0.00017828,2]
[365025727,1749412238377,-487.60707069,0.00017828,2]
[365025730,1749412238386,-552.81,0.00017828,2]
[365025733,1749412238395,-490.90748903,0.00017828,2]
[365025736,1749412238405,-263.46501789,0.00017828,2]
[365025739,1749412238415,-360.0,0.00017828,2]
[365025742,1749412238424,-480.0,0.00017828,2]
[365025744,1749412238433,-480.0,0.00017828,2]
[365025747,1749412238443,-480.0,0.00017828,2]
[365025750,1749412238453,-480.0,0.00017828,2]
[365025753,1749412238462,-480.0,0.00017828,2]
[365025756,1749412238471,-480.0,0.00017828,2]
[365025759,1749412238480,-480.0,0.00017828,2]
[365025762,1749412238490,-480.0,0.00017828,2]
[365025765,1749412238499,-480.0,0.00017828,2]
[365025768,1749412238508,-509.35292162,0.00017828,2]
[365025771,1749412238517,-296.46328971,0.00017828,2]
[365025774,1749412238527,-480.0,0.00017828,2]
[365025777,1749412238536,-480.0,0.00017828,2]
[365025780,1749412238545,-1760.09,0.00017828,2]
[365025783,1749412238555,-480.0,0.00017828,2]
[365025786,1749412238564,-486.4794094,0.00017828,2]
[365025789,1749412238573,-480.0,0.00017828,2]
[365025792,1749412238583,-602.56,0.00017828,2]
[365025795,1749412238592,-480.0,0.00017828,2]
[365025798,1749412238603,-480.0,0.00017828,2]
[365025801,1749412238613,-480.0,0.00017828,2]
[365025804,1749412238623,-480.0,0.00017828,2]
[365025807,1749412238633,-485.64,0.00017828,2]
[365025809,1749412238642,-501.72034018,0.00017828,2]
[365025811,1749412238651,-480.0,0.00017828,2]
[365025813,1749412238660,-480.0,0.00017828,2]
[365025815,1749412238671,-480.0,0.00017828,2]
[365025817,1749412238680,-490.04764733,0.00017828,2]
[365025819,1749412238689,-480.0,0.00017828,2]